[Event "Live Chess"]
[Site "Chess.com"]
[Date "2023.05.21"]
[Round "-"]
[White "SupremeTactician"]
[Black "LiamClery2020"]
[Result "0-1"]
[WhiteElo "2209"]
[BlackElo "1974"]
[TimeControl "300"]
[EndTime "7:16:59 PDT"]
[Termination "LiamClery2020 won by resignation"]

1. e4 {[%clk 0:04:59.4]} 1... Nf6 {[%clk 0:04:58.9]} 2. e5 {[%clk 0:04:57.1]}
2... Nd5 {[%clk 0:04:58.2]} 3. d4 {[%clk 0:04:57]} 3... d6 {[%clk 0:04:57.5]} 4.
Nf3 {[%clk 0:04:56.9]} 4... dxe5 {[%clk 0:04:56.8]} 5. Nxe5 {[%clk 0:04:56.8]}
5... c6 {[%clk 0:04:56.4]} 6. c4 {[%clk 0:04:56.4]} 6... Nb4 {[%clk 0:04:55.9]}
7. Nc3 {[%clk 0:04:56.1]} 7... Qxd4 {[%clk 0:04:54.4]} 8. Qxd4 {[%clk
0:04:54.1]} 8... Nc2+ {[%clk 0:04:53.3]} 9. Kd1 {[%clk 0:04:54]} 9... Nxd4
{[%clk 0:04:53.2]} 10. Be3 {[%clk 0:04:53.9]} 10... Nf5 {[%clk 0:04:52.2]} 11.
Bf4 {[%clk 0:04:52.5]} 11... Nd7 {[%clk 0:04:47]} 12. g4 {[%clk 0:04:44.1]}
12... Nxe5 {[%clk 0:04:40.1]} 13. Bxe5 {[%clk 0:04:44]} 13... Nh6 {[%clk
0:04:36.7]} 14. h3 {[%clk 0:04:42.7]} 14... Be6 {[%clk 0:04:34.7]} 15. b3 {[%clk
0:04:41.2]} 15... O-O-O+ {[%clk 0:04:34.1]} 16. Kc2 {[%clk 0:04:40.4]} 16... f5
{[%clk 0:04:31.1]} 17. f3 {[%clk 0:04:36.7]} 17... fxg4 {[%clk 0:04:29.9]} 18.
hxg4 {[%clk 0:04:36]} 18... Nf7 {[%clk 0:04:29.2]} 19. Bf4 {[%clk 0:04:34.9]}
19... g6 {[%clk 0:04:28]} 20. Re1 {[%clk 0:04:32.8]} 20... Bd7 {[%clk
0:04:24.4]} 21. Bd3 {[%clk 0:04:31.5]} 21... Bg7 {[%clk 0:04:23.6]} 22. Rxe7
{[%clk 0:04:29.5]} 22... Rdf8 {[%clk 0:04:17.1]} 23. Ne4 {[%clk 0:04:24.2]}
23... Kd8 {[%clk 0:04:13.1]} 24. Re1 {[%clk 0:04:03.1]} 24... Kxe7 {[%clk
0:04:10.9]} 25. Nc5+ {[%clk 0:03:59]} 25... Kd8 {[%clk 0:04:09.4]} 26. Nxb7+
{[%clk 0:03:58]} 26... Kc8 {[%clk 0:04:08.8]} 27. Nd6+ {[%clk 0:03:57.3]} 27...
Nxd6 {[%clk 0:04:07.6]} 28. Bxd6 {[%clk 0:03:55.9]} 28... Re8 {[%clk 0:04:06.9]}
29. Rf1 {[%clk 0:03:54.3]} 29... Bf8 {[%clk 0:04:02.2]} 30. Bg3 {[%clk
0:03:52.3]} 30... Bc5 {[%clk 0:04:01]} 31. a3 {[%clk 0:03:50.4]} 31... Rhf8
{[%clk 0:03:58.1]} 32. b4 {[%clk 0:03:49.5]} 32... Bb6 {[%clk 0:03:56.2]} 33.
Bd6 {[%clk 0:03:48.6]} 33... Rf6 {[%clk 0:03:51.3]} 34. Bg3 {[%clk 0:03:46]}
34... Bxg4 {[%clk 0:03:48.6]} 35. c5 {[%clk 0:03:43.7]} 35... Bc7 {[%clk
0:03:47.5]} 36. Bxc7 {[%clk 0:03:38.8]} 36... Kxc7 {[%clk 0:03:45.3]} 37. fxg4
{[%clk 0:03:38.5]} 37... Rxf1 {[%clk 0:03:44.6]} 38. Bxf1 {[%clk 0:03:38.4]}
38... Re4 {[%clk 0:03:39.5]} 39. Bh3 {[%clk 0:03:37.4]} 39... Re3 {[%clk
0:03:36.8]} 40. Bf1 {[%clk 0:03:36.5]} 40... Rg3 {[%clk 0:03:34.8]} 41. Be2
{[%clk 0:03:35.6]} 41... Rg2 {[%clk 0:03:32]} 42. Kd3 {[%clk 0:03:34.8]} 42...
Rg3+ {[%clk 0:03:31.3]} 43. Kd4 {[%clk 0:03:32.7]} 43... Rxa3 {[%clk 0:03:30.8]}
44. Ke5 {[%clk 0:03:30.1]} 44... Rb3 {[%clk 0:03:27.9]} 45. Kf6 {[%clk
0:03:28.7]} 45... Rxb4 {[%clk 0:03:27.4]} 46. Kg7 {[%clk 0:03:27.9]} 46... a5
{[%clk 0:03:24.6]} 47. Kxh7 {[%clk 0:03:26.8]} 47... a4 {[%clk 0:03:24.2]} 48.
Kxg6 {[%clk 0:03:26.1]} 48... a3 {[%clk 0:03:23.8]} 49. Bc4 {[%clk 0:03:25.6]}
49... Rxc4 {[%clk 0:03:22.8]} 0-1

[Event "Live Chess"]
[Site "Chess.com"]
[Date "2023.05.21"]
[Round "-"]
[White "JoeRoot66"]
[Black "Man-Del-Brot"]
[Result "1-0"]
[WhiteElo "1901"]
[BlackElo "1061"]
[TimeControl "300"]
[EndTime "7:17:00 PDT"]
[Termination "JoeRoot66 won on time"]

1. e4 {[%clk 0:04:56.2]} 1... e5 {[%clk 0:04:58.1]} 2. Nc3 {[%clk 0:04:53.1]}
2... Nf6 {[%clk 0:04:54.5]} 3. f4 {[%clk 0:04:51.6]} 3... d6 {[%clk 0:04:45.9]}
4. Nf3 {[%clk 0:04:50.1]} 4... Bg4 {[%clk 0:04:43.6]} 5. fxe5 {[%clk 0:04:47.5]}
5... Bxf3 {[%clk 0:04:41.1]} 6. Qxf3 {[%clk 0:04:45.9]} 6... dxe5 {[%clk
0:04:37.3]} 7. Bc4 {[%clk 0:04:43.2]} 7... c6 {[%clk 0:04:24.4]} 8. d3 {[%clk
0:04:41.5]} 8... Be7 {[%clk 0:04:00.9]} 9. O-O {[%clk 0:04:40.1]} 9... Nbd7
{[%clk 0:03:52]} 10. Qg3 {[%clk 0:04:33.2]} 10... g6 {[%clk 0:03:34.3]} 11. Bg5
{[%clk 0:04:28.4]} 11... O-O {[%clk 0:03:24.4]} 12. Rf3 {[%clk 0:04:18.1]} 12...
Nh5 {[%clk 0:03:21.4]} 13. Bxe7 {[%clk 0:04:15.6]} 13... Qxe7 {[%clk 0:03:19.7]}
14. Qh3 {[%clk 0:04:12]} 14... Nf4 {[%clk 0:02:35.2]} 15. Qg4 {[%clk 0:04:07]}
15... Nf6 {[%clk 0:02:30.2]} 16. Qg3 {[%clk 0:04:06.3]} 16... N6h5 {[%clk
0:02:12.2]} 17. Qg4 {[%clk 0:03:58.3]} 17... Nf6 {[%clk 0:02:08.3]} 18. Qh4
{[%clk 0:03:53.8]} 18... b5 {[%clk 0:01:03.5]} 19. Bb3 {[%clk 0:03:50.8]} 19...
b4 {[%clk 0:00:53.8]} 20. Nd1 {[%clk 0:03:46]} 20... Ne2+ {[%clk 0:00:49.3]} 21.
Kf2 {[%clk 0:03:44.4]} 21... Nd4 {[%clk 0:00:47.1]} 22. Qxf6 {[%clk 0:03:41.2]}
22... Qxf6 {[%clk 0:00:37.1]} 23. Rxf6 {[%clk 0:03:41.1]} 23... Nxb3 {[%clk
0:00:34.6]} 24. axb3 {[%clk 0:03:41]} 24... Kg7 {[%clk 0:00:31.9]} 25. Rxc6
{[%clk 0:03:39.9]} 25... a5 {[%clk 0:00:27.1]} 26. Rc5 {[%clk 0:03:38.4]} 26...
f5 {[%clk 0:00:16.7]} 27. Kg1 {[%clk 0:03:35.1]} 27... fxe4 {[%clk 0:00:15.1]}
28. dxe4 {[%clk 0:03:35]} 28... Rfd8 {[%clk 0:00:12.4]} 29. Rxe5 {[%clk
0:03:32.1]} 29... Rd2 {[%clk 0:00:10.2]} 30. Ne3 {[%clk 0:03:30.9]} 30... Rf8
{[%clk 0:00:04.6]} 31. Re7+ {[%clk 0:03:25.1]} 31... Kh6 {[%clk 0:00:02.6]} 32.
Ng4+ {[%clk 0:03:22.5]} 32... Kg5 {[%clk 0:00:00.9]} 33. Ne3 {[%clk 0:03:15]}
1-0

[Event "Live Chess"]
[Site "Chess.com"]
[Date "2023.05.21"]
[Round "-"]
[White "viktorskliarov"]
[Black "Conradical12"]
[Result "1/2-1/2"]
[WhiteElo "2643"]
[BlackElo "1556"]
[TimeControl "300"]
[EndTime "7:17:04 PDT"]
[Termination "Game drawn by repetition"]

1. e4 {[%clk 0:04:56]} 1... e5 {[%clk 0:04:59.4]} 2. Nc3 {[%clk 0:04:54.2]} 2...
Nc6 {[%clk 0:04:58.5]} 3. Bc4 {[%clk 0:04:48.8]} 3... Nf6 {[%clk 0:04:57.9]} 4.
d3 {[%clk 0:04:47]} 4... Bc5 {[%clk 0:04:57.3]} 5. a3 {[%clk 0:04:45.9]} 5... a5
{[%clk 0:04:55.4]} 6. h3 {[%clk 0:04:43.5]} 6... d6 {[%clk 0:04:54.8]} 7. Nge2
{[%clk 0:04:41.9]} 7... O-O {[%clk 0:04:53.7]} 8. Ng3 {[%clk 0:04:40.5]} 8... h6
{[%clk 0:04:49.3]} 9. O-O {[%clk 0:04:35.7]} 9... Nd4 {[%clk 0:04:41.7]} 10. Be3
{[%clk 0:04:27.2]} 10... c6 {[%clk 0:04:39.8]} 11. Nce2 {[%clk 0:04:20.4]} 11...
Qb6 {[%clk 0:04:34.4]} 12. c3 {[%clk 0:04:14.7]} 12... Nxe2+ {[%clk 0:04:31.4]}
13. Qxe2 {[%clk 0:04:14.6]} 13... Bxe3 {[%clk 0:04:29.9]} 14. fxe3 {[%clk
0:04:13.1]} 14... d5 {[%clk 0:04:25.7]} 15. Ba2 {[%clk 0:03:55.3]} 15... Be6
{[%clk 0:04:20.6]} 16. Rxf6 {[%clk 0:02:47]} 16... gxf6 {[%clk 0:04:12.6]} 17.
Rf1 {[%clk 0:02:45.9]} 17... Qd8 {[%clk 0:03:57.5]} 18. Nh5 {[%clk 0:02:36.2]}
18... dxe4 {[%clk 0:03:33]} 19. dxe4 {[%clk 0:02:06.2]} 19... f5 {[%clk
0:03:18.1]} 20. Bb1 {[%clk 0:01:54.8]} 20... b5 {[%clk 0:02:52.3]} 21. Rf3
{[%clk 0:01:27.3]} 21... Kh8 {[%clk 0:02:37.2]} 22. exf5 {[%clk 0:01:21.2]}
22... Bd5 {[%clk 0:02:34.9]} 23. Rg3 {[%clk 0:01:13.3]} 23... Rg8 {[%clk
0:02:32.8]} 24. Rxg8+ {[%clk 0:01:11.4]} 24... Qxg8 {[%clk 0:02:30.6]} 25. e4
{[%clk 0:01:10.8]} 25... Bc4 {[%clk 0:02:23.7]} 26. Qe3 {[%clk 0:01:08.2]} 26...
Qg5 {[%clk 0:02:17.5]} 27. Qxg5 {[%clk 0:01:07.2]} 27... hxg5 {[%clk 0:02:15.9]}
28. Kf2 {[%clk 0:01:06.5]} 28... Rd8 {[%clk 0:02:11.9]} 29. Ke1 {[%clk
0:01:05.6]} 29... Bd3 {[%clk 0:02:07.3]} 30. Bxd3 {[%clk 0:01:04.4]} 30... Rxd3
{[%clk 0:02:05.4]} 31. Ke2 {[%clk 0:01:04.1]} 31... Rd7 {[%clk 0:01:59.8]} 32.
Nf6 {[%clk 0:01:03.2]} 32... Rb7 {[%clk 0:01:57.7]} 33. Ng4 {[%clk 0:01:00]}
33... b4 {[%clk 0:01:56.2]} 34. cxb4 {[%clk 0:00:58.6]} 34... axb4 {[%clk
0:01:55.1]} 35. Nxe5 {[%clk 0:00:55]} 35... bxa3 {[%clk 0:01:50.5]} 36. bxa3
{[%clk 0:00:54.3]} 36... c5 {[%clk 0:01:45.5]} 37. Kd3 {[%clk 0:00:49.1]} 37...
f6 {[%clk 0:01:40.2]} 38. Ng4 {[%clk 0:00:44.8]} 38... Kg7 {[%clk 0:01:36.7]}
39. Kc4 {[%clk 0:00:43.8]} 39... Ra7 {[%clk 0:01:32.3]} 40. Kxc5 {[%clk
0:00:42.9]} 40... Rxa3 {[%clk 0:01:30.7]} 41. Kd4 {[%clk 0:00:42.3]} 41... Ra4+
{[%clk 0:01:26.4]} 42. Ke3 {[%clk 0:00:41.1]} 42... Kf7 {[%clk 0:01:23.7]} 43.
Kf3 {[%clk 0:00:35.6]} 43... Ra3+ {[%clk 0:01:20.7]} 44. Kf2 {[%clk 0:00:35]}
44... Ke7 {[%clk 0:01:18.7]} 45. g3 {[%clk 0:00:34.6]} 45... Ra4 {[%clk
0:01:17.1]} 46. Kf3 {[%clk 0:00:33.8]} 46... Ra3+ {[%clk 0:01:16.1]} 47. Kf2
{[%clk 0:00:33.3]} 47... Kd6 {[%clk 0:01:14.9]} 48. h4 {[%clk 0:00:30.3]} 48...
gxh4 {[%clk 0:01:12.6]} 49. gxh4 {[%clk 0:00:30.2]} 49... Ke7 {[%clk 0:01:11.5]}
50. Kg2 {[%clk 0:00:29.2]} 50... Ra2+ {[%clk 0:01:09.7]} 51. Kg3 {[%clk
0:00:28.3]} 51... Kf7 {[%clk 0:01:08.8]} 52. h5 {[%clk 0:00:27.8]} 52... Ra8
{[%clk 0:01:06.3]} 53. h6 {[%clk 0:00:27]} 53... Re8 {[%clk 0:01:03.1]} 54. Kf4
{[%clk 0:00:26.4]} 54... Rh8 {[%clk 0:01:01.7]} 55. e5 {[%clk 0:00:25.6]} 55...
fxe5+ {[%clk 0:00:59.3]} 56. Nxe5+ {[%clk 0:00:25.3]} 56... Kf6 {[%clk
0:00:57.3]} 57. Ng4+ {[%clk 0:00:24.7]} 57... Ke7 {[%clk 0:00:56.1]} 58. Ne5
{[%clk 0:00:23.9]} 58... Kf6 {[%clk 0:00:55.1]} 59. Ng4+ {[%clk 0:00:22.4]}
59... Kf7 {[%clk 0:00:52.5]} 60. Kg5 {[%clk 0:00:21.5]} 60... Rg8+ {[%clk
0:00:49.6]} 61. Kf4 {[%clk 0:00:21.1]} 61... Rh8 {[%clk 0:00:48.4]} 62. Kg5
{[%clk 0:00:20.2]} 62... Rg8+ {[%clk 0:00:47.4]} 63. Kf4 {[%clk 0:00:19.7]}
63... Rh8 {[%clk 0:00:35.8]} 1/2-1/2

[Event "Live Chess"]
[Site "Chess.com"]
[Date "2023.05.21"]
[Round "-"]
[White "MarkLim1"]
[Black "davigator"]
[Result "1/2-1/2"]
[WhiteElo "1705"]
[BlackElo "2288"]
[TimeControl "300"]
[EndTime "7:17:19 PDT"]
[Termination "Game drawn by repetition"]

1. e4 {[%clk 0:04:59.3]} 1... c5 {[%clk 0:04:57.9]} 2. Nf3 {[%clk 0:04:58]} 2...
Nc6 {[%clk 0:04:56.1]} 3. Bb5 {[%clk 0:04:57]} 3... g6 {[%clk 0:04:54.8]} 4. O-O
{[%clk 0:04:54.9]} 4... Bg7 {[%clk 0:04:54.1]} 5. c3 {[%clk 0:04:53.8]} 5... Nf6
{[%clk 0:04:53]} 6. Re1 {[%clk 0:04:52.4]} 6... O-O {[%clk 0:04:51.7]} 7. d4
{[%clk 0:04:51.6]} 7... cxd4 {[%clk 0:04:50.5]} 8. cxd4 {[%clk 0:04:50.8]} 8...
d5 {[%clk 0:04:50.4]} 9. e5 {[%clk 0:04:49.9]} 9... Ne4 {[%clk 0:04:50.1]} 10.
Bd3 {[%clk 0:04:47.6]} 10... Bf5 {[%clk 0:04:45.3]} 11. Nc3 {[%clk 0:04:46.7]}
11... Nxc3 {[%clk 0:04:43.8]} 12. bxc3 {[%clk 0:04:45.7]} 12... Bxd3 {[%clk
0:04:40.9]} 13. Qxd3 {[%clk 0:04:44.9]} 13... f6 {[%clk 0:04:40.7]} 14. exf6
{[%clk 0:04:41.8]} 14... exf6 {[%clk 0:04:39.9]} 15. Ba3 {[%clk 0:04:35.9]}
15... Rf7 {[%clk 0:04:38.7]} 16. Re6 {[%clk 0:04:32.9]} 16... Qd7 {[%clk
0:04:37.6]} 17. Rae1 {[%clk 0:04:31.1]} 17... Rd8 {[%clk 0:04:29.7]} 18. h3
{[%clk 0:04:29.9]} 18... Qc7 {[%clk 0:04:26]} 19. Re8+ {[%clk 0:04:22.5]} 19...
Rxe8 {[%clk 0:04:23.3]} 20. Rxe8+ {[%clk 0:04:21.1]} 20... Bf8 {[%clk
0:04:23.2]} 21. Qe3 {[%clk 0:04:10.3]} 21... Qd7 {[%clk 0:04:22]} 22. Bxf8
{[%clk 0:03:59]} 22... Rxf8 {[%clk 0:04:20.9]} 23. Rxf8+ {[%clk 0:03:57.5]}
23... Kxf8 {[%clk 0:04:20.1]} 24. Qf4 {[%clk 0:03:52.8]} 24... Kg7 {[%clk
0:04:18.7]} 25. Ne1 {[%clk 0:03:46.9]} 25... Na5 {[%clk 0:04:17.5]} 26. Nd3
{[%clk 0:03:44.8]} 26... b6 {[%clk 0:04:16.7]} 27. Nb4 {[%clk 0:03:42.4]} 27...
Kf7 {[%clk 0:03:45.9]} 28. Qf3 {[%clk 0:03:39.9]} 28... Ke6 {[%clk 0:03:44.9]}
29. Qe3+ {[%clk 0:03:37.6]} 29... Kf7 {[%clk 0:03:40.4]} 30. Qh6 {[%clk
0:03:36.2]} 30... Ke6 {[%clk 0:03:36]} 31. Qe3+ {[%clk 0:03:30.1]} 31... Kf7
{[%clk 0:03:34.3]} 32. Qh6 {[%clk 0:03:28.5]} 32... Ke6 {[%clk 0:03:19.3]} 33.
Qe3+ {[%clk 0:03:26.9]} 1/2-1/2

[Event "Live Chess"]
[Site "Chess.com"]
[Date "2023.05.21"]
[Round "-"]
[White "LL220284LL"]
[Black "WelshTiger"]
[Result "0-1"]
[WhiteElo "2251"]
[BlackElo "2334"]
[TimeControl "300"]
[EndTime "7:17:24 PDT"]
[Termination "WelshTiger won by resignation"]

1. d4 {[%clk 0:04:57.6]} 1... d5 {[%clk 0:04:57.8]} 2. Bf4 {[%clk 0:04:56.5]}
2... e6 {[%clk 0:04:57]} 3. Nf3 {[%clk 0:04:55.8]} 3... Bd6 {[%clk 0:04:56.7]}
4. e3 {[%clk 0:04:54.5]} 4... Bxf4 {[%clk 0:04:55.7]} 5. exf4 {[%clk 0:04:54.4]}
5... c5 {[%clk 0:04:53.6]} 6. Nbd2 {[%clk 0:04:49.6]} 6... cxd4 {[%clk
0:04:49.7]} 7. Nxd4 {[%clk 0:04:49.5]} 7... Nc6 {[%clk 0:04:49]} 8. N2f3 {[%clk
0:04:47.8]} 8... Nf6 {[%clk 0:04:47.4]} 9. Bd3 {[%clk 0:04:44.2]} 9... Qb6
{[%clk 0:04:46]} 10. b3 {[%clk 0:04:36.4]} 10... Bd7 {[%clk 0:04:42.4]} 11. Ne2
{[%clk 0:04:30.1]} 11... O-O {[%clk 0:04:31.5]} 12. O-O {[%clk 0:04:29]} 12...
Rac8 {[%clk 0:04:29.7]} 13. c4 {[%clk 0:04:25.4]} 13... Nb4 {[%clk 0:04:24.8]}
14. Ne5 {[%clk 0:04:23.4]} 14... Nxd3 {[%clk 0:04:17.8]} 15. Qxd3 {[%clk
0:04:23.3]} 15... Rfd8 {[%clk 0:04:06]} 16. cxd5 {[%clk 0:04:18.9]} 16... Nxd5
{[%clk 0:04:04.2]} 17. g3 {[%clk 0:04:17]} 17... Bb5 {[%clk 0:04:01.7]} 18. Qf3
{[%clk 0:04:14.1]} 18... Rc2 {[%clk 0:03:48.3]} 19. Rfe1 {[%clk 0:04:11.4]}
19... f6 {[%clk 0:03:41.7]} 20. Nc4 {[%clk 0:04:06.2]} 20... Bxc4 {[%clk
0:03:37.3]} 21. bxc4 {[%clk 0:04:06.1]} 21... Rxc4 {[%clk 0:03:36.2]} 22. Rad1
{[%clk 0:04:02.7]} 22... Rcc8 {[%clk 0:03:19]} 23. Nd4 {[%clk 0:04:00.2]} 23...
Nc3 {[%clk 0:03:14.2]} 24. Rxe6 {[%clk 0:03:54.5]} 24... Qc5 {[%clk 0:03:02]}
25. Rde1 {[%clk 0:03:36.1]} 25... Qxd4 {[%clk 0:02:56.7]} 26. Qxb7 {[%clk
0:03:33.3]} 26... Qd7 {[%clk 0:02:53.4]} 27. Re8+ {[%clk 0:03:26.5]} 27... Qxe8
{[%clk 0:02:43.7]} 28. Rxe8+ {[%clk 0:03:25.1]} 28... Rxe8 {[%clk 0:02:43.5]}
29. Qxa7 {[%clk 0:03:23.7]} 29... Ne4 {[%clk 0:02:40.2]} 30. Qd7 {[%clk
0:03:20.6]} 30... Rcd8 {[%clk 0:02:36.3]} 31. Qc6 {[%clk 0:03:17.1]} 31... f5
{[%clk 0:02:31.8]} 32. Qb5 {[%clk 0:03:08.4]} 32... g6 {[%clk 0:02:28.5]} 33.
Qc4+ {[%clk 0:03:06.5]} 33... Kg7 {[%clk 0:02:27.2]} 34. f3 {[%clk 0:02:59.2]}
34... Nf6 {[%clk 0:02:26]} 35. g4 {[%clk 0:02:57.3]} 35... fxg4 {[%clk
0:02:19.5]} 36. fxg4 {[%clk 0:02:56.2]} 36... Re4 {[%clk 0:02:15.8]} 37. Qc7+
{[%clk 0:02:54]} 37... Rd7 {[%clk 0:02:15.1]} 38. Qc3 {[%clk 0:02:52.3]} 38...
Red4 {[%clk 0:02:02.7]} 39. g5 {[%clk 0:02:47.7]} 39... Ne4 {[%clk 0:02:01.3]}
40. Qb2 {[%clk 0:02:43.7]} 40... Kf7 {[%clk 0:01:53.1]} 41. Qb3+ {[%clk
0:02:42.6]} 41... R7d5 {[%clk 0:01:49.5]} 42. a4 {[%clk 0:02:40.8]} 42... Ke6
{[%clk 0:01:42.8]} 43. a5 {[%clk 0:02:38.9]} 43... Kf5 {[%clk 0:01:42.2]} 44.
Qh3+ {[%clk 0:02:34.8]} 44... Kxf4 {[%clk 0:01:40.3]} 45. Qh4+ {[%clk
0:02:33.8]} 45... Ke3 {[%clk 0:01:39.7]} 46. Qe1+ {[%clk 0:02:31.3]} 46... Kf4
{[%clk 0:01:39]} 47. Qh4+ {[%clk 0:02:30.2]} 47... Kf5 {[%clk 0:01:38.4]} 48.
Qh3+ {[%clk 0:02:29.2]} 48... Kxg5 {[%clk 0:01:37.5]} 49. Qe3+ {[%clk
0:02:27.9]} 49... Kf5 {[%clk 0:01:36.4]} 50. Qh3+ {[%clk 0:02:17.6]} 50... Kf6
{[%clk 0:01:34]} 51. Qh4+ {[%clk 0:02:15.9]} 51... Ng5 {[%clk 0:01:30.6]} 52.
Qf2+ {[%clk 0:02:11.6]} 52... Kg7 {[%clk 0:01:27.6]} 53. Qb2 {[%clk 0:02:08.9]}
53... Kh6 {[%clk 0:01:25.7]} 54. Qb8 {[%clk 0:02:05.6]} 54... Rd2 {[%clk
0:01:21.9]} 55. h4 {[%clk 0:01:57.9]} 55... Nf3+ {[%clk 0:01:20.2]} 56. Kf1
{[%clk 0:01:57.1]} 56... Rf5 {[%clk 0:01:14.6]} 57. a6 {[%clk 0:01:51.9]} 57...
Nd4+ {[%clk 0:01:07.6]} 58. Ke1 {[%clk 0:01:49.8]} 58... Re2+ {[%clk 0:01:06.9]}
0-1

[Event "Live Chess"]
[Site "Chess.com"]
[Date "2023.05.21"]
[Round "-"]
[White "CheckThis4"]
[Black "JanMur7"]
[Result "1-0"]
[WhiteElo "2527"]
[BlackElo "1970"]
[TimeControl "300"]
[EndTime "7:17:47 PDT"]
[Termination "CheckThis4 won by checkmate"]

1. d4 {[%clk 0:04:58.1]} 1... Nf6 {[%clk 0:04:56.2]} 2. Nc3 {[%clk 0:04:57.6]}
2... d5 {[%clk 0:04:55]} 3. e4 {[%clk 0:04:56.7]} 3... e6 {[%clk 0:04:53.3]} 4.
Bg5 {[%clk 0:04:52.3]} 4... dxe4 {[%clk 0:04:51.5]} 5. Nxe4 {[%clk 0:04:50.1]}
5... Be7 {[%clk 0:04:50.2]} 6. Bxf6 {[%clk 0:04:48.2]} 6... Bxf6 {[%clk
0:04:49.2]} 7. Nf3 {[%clk 0:04:45.1]} 7... O-O {[%clk 0:04:48]} 8. c3 {[%clk
0:04:24.7]} 8... b6 {[%clk 0:04:46.1]} 9. Bd3 {[%clk 0:04:23.2]} 9... Bb7 {[%clk
0:04:43.6]} 10. Qe2 {[%clk 0:04:21.4]} 10... Nd7 {[%clk 0:04:41.9]} 11. O-O-O
{[%clk 0:04:16.1]} 11... Qe7 {[%clk 0:04:31.7]} 12. h4 {[%clk 0:04:14.5]} 12...
c5 {[%clk 0:04:13.4]} 13. Nfg5 {[%clk 0:03:24]} 13... h6 {[%clk 0:04:00.7]} 14.
Nh7 {[%clk 0:03:20.7]} 14... Rfc8 {[%clk 0:03:47.1]} 15. dxc5 {[%clk 0:03:16.1]}
15... Bxe4 {[%clk 0:03:35.4]} 16. Bxe4 {[%clk 0:03:05.5]} 16... Rab8 {[%clk
0:03:29.3]} 17. c6 {[%clk 0:02:58.2]} 17... Nc5 {[%clk 0:03:26.4]} 18. Nxf6+
{[%clk 0:02:46.4]} 18... Qxf6 {[%clk 0:03:23.6]} 19. Bf3 {[%clk 0:02:26.9]}
19... e5 {[%clk 0:03:09.2]} 20. Rhe1 {[%clk 0:02:22.8]} 20... e4 {[%clk
0:03:03.1]} 21. Bxe4 {[%clk 0:02:20]} 21... Qf4+ {[%clk 0:02:56.4]} 22. Qd2
{[%clk 0:02:08.4]} 22... Qxd2+ {[%clk 0:02:44]} 23. Rxd2 {[%clk 0:02:07.5]}
23... Nxe4 {[%clk 0:02:43.9]} 24. Rxe4 {[%clk 0:02:06]} 24... Rxc6 {[%clk
0:02:43.5]} 25. Rd7 {[%clk 0:02:04.6]} 25... a5 {[%clk 0:02:42.1]} 26. Rf4
{[%clk 0:01:58.2]} 26... f6 {[%clk 0:02:39.1]} 27. Re4 {[%clk 0:01:56.7]} 27...
Kh7 {[%clk 0:02:36.7]} 28. h5 {[%clk 0:01:54.7]} 28... Rbc8 {[%clk 0:02:27.8]}
29. Ree7 {[%clk 0:01:52.7]} 29... Rg8 {[%clk 0:02:27]} 30. Kd2 {[%clk
0:01:46.1]} 30... f5 {[%clk 0:02:20.9]} 31. f4 {[%clk 0:01:42.7]} 31... Rc4
{[%clk 0:02:18]} 32. g3 {[%clk 0:01:41.4]} 32... Rc5 {[%clk 0:02:11.9]} 33. b3
{[%clk 0:01:39.8]} 33... b5 {[%clk 0:02:10]} 34. Kd3 {[%clk 0:01:37.8]} 34...
Rcc8 {[%clk 0:01:58.1]} 35. c4 {[%clk 0:01:36.6]} 35... bxc4+ {[%clk 0:01:55.3]}
36. bxc4 {[%clk 0:01:36.5]} 36... Rb8 {[%clk 0:01:51.4]} 37. c5 {[%clk
0:01:30.8]} 37... Rb1 {[%clk 0:01:49.3]} 38. c6 {[%clk 0:01:28.5]} 38... Rc1
{[%clk 0:01:47.7]} 39. c7 {[%clk 0:01:26.9]} 39... a4 {[%clk 0:01:42.1]} 40. a3
{[%clk 0:01:24.2]} 40... Kh8 {[%clk 0:01:35.9]} 41. Kd4 {[%clk 0:01:20.7]} 41...
Rd1+ {[%clk 0:01:18.1]} 42. Ke5 {[%clk 0:01:19.3]} 42... Rc1 {[%clk 0:01:16.9]}
43. Kxf5 {[%clk 0:01:13.4]} 43... Rf8+ {[%clk 0:01:13.2]} 44. Kg4 {[%clk
0:01:11.6]} 44... Rc3 {[%clk 0:00:57.4]} 45. Rd8 {[%clk 0:01:06]} 45... Kh7
{[%clk 0:00:53.4]} 46. Rdd7 {[%clk 0:00:45.8]} 46... Kh8 {[%clk 0:00:47.6]} 47.
Rf7 {[%clk 0:00:44.8]} 47... Rg8 {[%clk 0:00:40.5]} 48. Rd8 {[%clk 0:00:39.5]}
48... Rxd8 {[%clk 0:00:18.5]} 49. cxd8=Q+ {[%clk 0:00:37.8]} 49... Kh7 {[%clk
0:00:18.4]} 50. Rxg7+ {[%clk 0:00:36.1]} 50... Kxg7 {[%clk 0:00:17.3]} 51. Qd4+
{[%clk 0:00:34.6]} 51... Kg8 {[%clk 0:00:17.2]} 52. Qxc3 {[%clk 0:00:33.5]}
52... Kh7 {[%clk 0:00:17.1]} 53. Kf5 {[%clk 0:00:31.8]} 53... Kg8 {[%clk
0:00:16.1]} 54. Qc8+ {[%clk 0:00:29.6]} 54... Kh7 {[%clk 0:00:16]} 55. Qb7+
{[%clk 0:00:28.2]} 55... Kg8 {[%clk 0:00:15.9]} 56. Kg6 {[%clk 0:00:26.9]} 56...
Kf8 {[%clk 0:00:15.8]} 57. Qf7# {[%clk 0:00:26.1]} 1-0